Cogmind - Beta 13 @@@ ROGUE MODE // 2024.04.06 @ 12:22:07 Player: Rocketboy Result: Destroyed by P-80 Master with Gamma Rifle Performance ------------- Evolutions (8) 4000 Regions Visited (16) 3200 Robots Destroyed (83) 415 Value Destroyed (2054) 2054 Prototype IDs (33) 660 Alien Tech Used (0) 0 Bonus (1902) 1902 TOTAL SCORE: 12231 Bonus ------- High Alert Combat Kills 42 Follower Combat Kills 754 Entered DSFs 1000 Aligned with FarCom 300 Friendly Fire -194 Cogmind --------- Core Integrity 0/1450 Matter 176/300 Energy 88/100 System Corruption 27% Temperature Cool (0) Movement Core (150) Ox2 Location -2/Research Parts ------- > --- POWER (3) -------- (None) > --- PROPULSION (6) --- (None) > --- UTILITY (10) ----- (None) > --- WEAPON (4) ------- Enhanced Force Lance > --- INVENTORY (5) ---- Improved Remote Force Field Improved Remote Force Field Advanced Component Analysis Suite Peak State ------------ > --- POWER ------------ Micro Fission Core Micro Fission Core Light Particle Reactor > --- PROPULSION ------- Combat Antigrav System Combat Antigrav System Combat Antigrav System Combat Antigrav System Combat Antigrav System Combat Antigrav System > --- UTILITY ---------- Advanced Power Amplifier Advanced Power Amplifier Energy Well Matter Compressor Hardened Light Armor Plating Improved Thermal Shield Improved Thermal Defense Suite Improved Remote Force Field Improved Remote Force Field > --- WEAPON ----------- Heavy Beamcaster Heavy Beamcaster Heavy Beamcaster > --- INVENTORY -------- Micro Fission Core Improved Linear Gravjet Improved Linear Gravjet Heavy Beamcaster [Rating: 143] Favorites ----------- Power Light Deuterium Engine Engine Light Deuterium Engine Power Core Micro Fission Core Reactor Light Quantum Reactor Propulsion Combat Antigrav System Treads Advanced Heavy Siege Treads Leg Aluminum Leg Hover Unit Combat Antigrav System Utility Medium Storage Unit Device Advanced Thermal Shield Storage Medium Storage Unit Processor Advanced Targeting Computer Hackware System Shield Protection Hardened Light Armor Plating Weapon Heavy Beamcaster Energy Gun Heavy Beamcaster Energy Cannon Firepult Ballistic Gun Heavy Machine Gun Ballistic Cannon Magnetic Acceleration Cannon Launcher Shock Bomb Launcher Special Weapon Improved Plasma Cutter Piercing Weapon Enhanced Force Lance Build | -11 -10 -10 -10 -9 -8 -8 -7 -6 -6 -5 -4 -4 -4 -4 -3 -2 ------- Run | Yrd Mat Min Exi Min Mat Sto Fac Fac DSF Fac Fac Was Fac DSF Res Res Slots Evolved 16 | . . . . . 4 . 2 2 . 2 2 . . . 2 2 Power 2 | . . . . . 1 . . . . . 1 . . . . . Propulsion 4 | . . . . . 2 . . 1 . 1 . . . . . . Utility 8 | . . . . . 1 . 2 1 . . 1 . . . 2 1 Weapon 2 | . . . . . . . . . . 1 . . . . . 1 Parts Attached 205 | 10 2 . 4 5 13 29 15 5 22 11 13 10 . 23 13 30 Power 28 | 1 . . . . 4 2 2 . 2 1 2 . . 4 5 5 Engine 14 | 1 . . . . 4 1 2 . 2 1 1 . . . . 2 Core 9 | . . . . . . 1 . . . . 1 . . 4 3 . Reactor 5 | . . . . . . . . . . . . . . . 2 3 Propulsion 53 | 2 . . . . 1 11 3 1 10 2 3 3 . 12 . 5 Treads 1 | . . . . . . . . . . . . . . . . 1 Leg 17 | 2 . . . . 1 3 . . 5 . 3 3 . . . . Wheel . | . . . . . . . . . . . . . . . . . Hover 35 | . . . . . . 8 3 1 5 2 . . . 12 . 4 Flight . | . . . . . . . . . . . . . . . . . Utility 58 | 3 2 . 3 . 5 2 3 2 6 2 5 3 . 7 6 9 Device 30 | 2 . . . . 1 . 1 1 2 2 4 . . 6 5 6 Storage 9 | 1 1 . 3 . 2 . . . . . 1 . . . 1 . Processor 9 | . 1 . . . . 2 . . 3 . . . . 1 . 2 Hackware 2 | . . . . . 2 . . . . . . . . . . . Protection 8 | . . . . . . . 2 1 1 . . 3 . . . 1 Artifact . | . . . . . . . . . . . . . . . . . Weapon 66 | 4 . . 1 5 3 14 7 2 4 6 3 4 . . 2 11 Energy Gun 29 | 4 . . . 2 3 8 4 . 1 1 1 3 . . . 2 Energy Cannon 21 | . . . 1 1 . 5 2 2 . 2 . . . . 2 6 Ballistic Gun 5 | . . . . 2 . . . . 1 . . . . . . 2 Ballistic Cannon 6 | . . . . . . . . . 2 2 2 . . . . . Launcher 2 | . . . . . . 1 1 . . . . . . . . . Special Weapon 2 | . . . . . . . . . . 1 . 1 . . . . Impact Weapon . | . . . . . . . . . . . . . . . . . Slashing Weapon . | . . . . . . . . . . . . . . . . . Piercing Weapon 1 | . . . . . . . . . . . . . . . . 1 Special Melee Weapon . | . . . . . . . . . . . . . . . . . Unidentified Prototypes 10 | . . . . . 1 3 2 1 1 1 . . . . . 1 Corrupted Parts 3 | . . . . . . . . . . . 3 . . . . . System Corruption 24 | . . . . . . . . . . . 24 . . . . . Parts Lost 67 | . . . . . . 3 2 . 8 7 2 6 . . 13 26 Power 14 | . . . . . . 1 1 . 1 2 . 1 . . 4 4 Propulsion 17 | . . . . . . 1 . . 3 3 1 1 . . . 8 Utility 22 | . . . . . . 1 . . 2 1 . 3 . . 6 9 Weapon 14 | . . . . . . . 1 . 2 1 1 1 . . 3 5 Highest Loss Streak 18 | . . . . . . 1 2 . 7 7 1 6 . . 11 18 To Critical Strikes . | . . . . . . . . . . . . . . . . . Average Slot Usage (%) 79 | . 100 100 89 96 85 87 96 92 80 83 73 53 57 88 80 57 Engine 9 | . 14 14 14 14 18 15 12 6 8 10 2 7 10 6 . 1 Core 1 | . . . . . . 2 . . . . 5 . . 7 8 . Leg 10 | . 28 28 28 28 22 9 . . 14 . 8 10 10 3 . . Hover 14 | . . . . . . 20 29 33 15 33 6 . . 23 28 22 Device 7 | . 12 . . . 4 . 7 12 6 8 22 5 . 14 18 14 Storage 7 | . 3 14 13 14 10 9 7 6 6 5 8 5 5 5 9 3 Processor 6 | . 11 14 14 14 8 4 7 6 9 5 5 . . 1 . 7 Hackware 3 | . . . . . 3 12 7 6 3 . . . . . . . Protection 1 | . . . . . . . 7 6 1 1 . 7 15 9 2 . Energy Gun 8 | . 28 28 8 11 14 8 13 2 . 4 5 11 15 15 7 1 Energy Cannon 2 | . . . 9 1 . 4 . 8 1 1 . . . . 3 2 Ballistic Gun 1 | . . . . 11 3 . . . 3 5 1 . . . . . Naked Turns . | . . . . . . . . . . . . . . . . . Heaviest Build 93 | 13 13 12 30 11 30 46 45 42 49 57 68 79 79 79 93 71 Greatest Support 96 | 20 20 20 20 20 35 45 39 45 90 57 60 70 50 96 96 80 Greatest Overweight (x) 7 | 2 . . 1 . 1 5 1 . 2 1 6 1 1 2 1 7 Average Overweight (x) . | . . . . . . . . . . . 1 . 1 . . . Largest Inventory Capacity 20 | 8 8 8 20 8 10 10 10 10 10 10 10 5 5 5 5 5 Average Capacity 7 | 6 5 8 8 8 8 10 10 10 10 10 8 5 5 5 5 5 Most Carried 10 | 3 7 7 8 7 9 10 9 5 10 10 9 5 3 5 5 5 Average Carried 6 | 1 4 7 6 5 6 9 7 4 7 9 2 2 3 4 4 4 Final Capacity 10 | 8 8 8 8 8 10 10 10 10 10 10 5 5 5 5 5 5 Final Carried 10 | 2 7 7 5 5 8 8 6 5 8 10 2 3 3 5 4 3 Class Distribution -------------------- 53% | Mutant 11% | Tank 8% | Hacker-Mutant 6% | Skirmisher 4% | Scavenger-Skirmisher 4% | Scavenger-Tank 3% | Infiltrator-Mutant 3% | Scavenger-Scout Dominant Class ---------------- Mutant | -10/Materials Mutant | -10/Mines Mutant | -10/Exiles Mutant | -9/Mines Skirmisher | -8/Materials Mutant | -8/Storage Mutant | -7/Factory Mutant | -6/Factory Scavenger-Skirmisher | -6/DSF Scavenger-Scout | -5/Factory Scavenger-Tank | -4/Factory Tank | -4/Waste Tank | -4/Factory Tank | -4/DSF Mutant | -3/Research Mutant | -2/Research Resources | -11 -10 -10 -10 -9 -8 -8 -7 -6 -6 -5 -4 -4 -4 -4 -3 -2 ----------- Run | Yrd Mat Min Exi Min Mat Sto Fac Fac DSF Fac Fac Was Fac DSF Res Res Matter Collected 2650 | 300 10 10 10 42 175 475 . . 349 123 425 316 . 222 8 185 Remotely . | . . . . . . . . . . . . . . . . . Salvage Created 3660 | 167 67 . . 31 386 1093 119 . 350 105 499 . . . . 843 Parts 177 | 10 9 . . . 22 49 12 . 24 6 21 . . . . 24 Haulers Intercepted 7 | . . . . . 2 4 1 . . . . . . . . . Recyclers Shooed 5 | . . . . . . . . . . . . . . . . 5 Parts Field Recycled . | . . . . . . . . . . . . . . . . . Retrieved Matter . | . . . . . . . . . . . . . . . . . Parts Self-Destructed . | . . . . . . . . . . . . . . . . . Prevented . | . . . . . . . . . . . . . . . . . Kills | -11 -10 -10 -10 -9 -8 -8 -7 -6 -6 -5 -4 -4 -4 -4 -3 -2 ------- Run | Yrd Mat Min Exi Min Mat Sto Fac Fac DSF Fac Fac Was Fac DSF Res Res Combat Hostiles Destroyed 51 | . 3 . . 2 9 15 3 . 11 1 4 . . . . 3 Guns 23 | . 3 . . . 8 6 . . 4 1 1 . . . . . Cannons 14 | . . . . . . 4 1 . 6 . 1 . . . . 2 AOE 8 | . . . . 2 1 3 2 . . . . . . . . . Classes Destroyed 18 | 2 2 . . 1 3 6 1 . 2 . . . . . . 1 Worker 6 | . . . . . . 1 . . . 1 2 . . . . 2 Builder 4 | . . . . . . 1 . . . . 2 . . . . 1 Tunneler 3 | 3 . . . . . . . . . . . . . . . . Hauler 7 | . . . . . 2 4 1 . . . . . . . . . Recycler 9 | 1 . . . . 1 2 . . . . 1 . . . . 4 Mechanic 1 | . . . . . 1 . . . . . . . . . . . Operator 3 | . . . . . . 3 . . . . . . . . . . Watcher 1 | . 1 . . . . . . . . . . . . . . . Swarmer 21 | . 3 . . . 8 3 . . 7 . . . . . . . Cutter 4 | . . . . . . . 3 . . 1 . . . . . . Grunt 13 | . . . . . . 6 . . 1 . 4 . . . . 2 Brawler 1 | . . . . . . 1 . . . . . . . . . . Sentry 5 | . . . . . . 5 . . . . . . . . . . Specialist 2 | . . . . . . . . . 2 . . . . . . . Hunter 1 | . . . . . 1 . . . . . . . . . . . Programmer 1 | . . . . . . . . . . . . . . . . 1 Heavy 1 | . . . . . . . . . 1 . . . . . . . Assembled 2 | . . . . 2 . . . . . . . . . . . . Best Kill Streak 8 | 4 4 . . 2 8 7 3 . 4 1 7 . . . . 3 Combat Bots Only 7 | . 3 . . 2 7 4 3 . 4 1 3 . . . . 2 Max Kills in Single Turn 5 | 1 1 . . 1 2 5 2 . 1 1 4 . . . . 1 Gunslinging 1 | . . . . . . 1 . . . . . . . . . . Exploded 2 | . . . . 1 1 2 2 . . . . . . . . . Melee . | . . . . . . . . . . . . . . . . . Uniques/NPCs Destroyed . | . . . . . . . . . . . . . . . . . Combat | -11 -10 -10 -10 -9 -8 -8 -7 -6 -6 -5 -4 -4 -4 -4 -3 -2 -------- Run | Yrd Mat Min Exi Min Mat Sto Fac Fac DSF Fac Fac Was Fac DSF Res Res Hostile Shots Fired 634 | . 18 . . 3 49 31 10 . 112 23 32 8 . . 113 235 Missed 213 | . 9 . . . 10 8 5 . 42 8 6 3 . . 42 80 Damage Taken 10777 | . 74 . . 114 323 674 605 . 1514 786 413 143 . . 1692 4439 Core 2772 | . 10 . . . 86 131 155 . 276 143 53 32 . . 416 1470 Absorbed by Shields 233 | . . . . . . . . . . . 60 41 . . 74 58 Ignored by Resistances 122 | . . . . . . . . . . . 122 . . . . . Regen/Repaired (Parts) 499 | . . . . . . 270 89 . . . . 140 . . . . Core Remaining (%) 80 | 100 . . . 96 . 60 77 . 67 85 . . . 92 68 . Volleys Fired 234 | 8 7 . . 4 32 37 3 . 27 20 24 . . . 3 69 Largest 3 | 2 2 . . 2 2 2 2 . 2 2 3 . . . 3 3 Hottest 269 | 80 80 . . 250 112 250 250 . 143 111 160 . . . 243 269 Shots Fired 359 | 16 14 . . 6 61 62 4 . 46 22 36 1 . . 7 84 Gun 256 | 16 14 . . 4 61 39 2 . 10 17 26 1 . . 7 59 Cannon 94 | . . . . 2 . 19 2 . 36 . 10 . . . . 25 Launcher 4 | . . . . . . 4 . . . . . . . . . . Special 5 | . . . . . . . . . . 5 . . . . . . Kinetic 79 | . . . . 2 15 . . . 35 2 13 . . . . 12 Thermal 153 | . . . . 4 33 40 2 . 11 14 . 1 . . 7 41 Explosive . | . . . . . . . . . . . . . . . . . Electromagnetic 127 | 16 14 . . . 13 22 2 . . 6 23 . . . . 31 Robot Hit Streak 15 | 4 2 . . 3 12 12 5 . 8 6 15 1 . . 2 9 Robot Miss Streak 6 | 1 2 . . 3 6 3 1 . 3 3 4 . . . 4 4 Penetration Max . | . . . . . . . . . . . . . . . . . Secondary Targets 1 | . . . . . . 1 . . . . . . . . . . Max Gunslinging Chain 1 | . . . . . . 1 . . . . . . . . . . Shots Hit Robots 250 | 10 7 . . 5 39 49 3 . 30 16 28 1 . . 2 60 Core Hits 144 | 5 4 . . 5 22 39 6 . 14 7 17 . . . 1 24 Critical Kills 1 | . . . . . . . . . 1 . . . . . . . Critical Parts Destroyed 5 | . . . . . . . . . . . . . . . . 5 Critical Strikes 19 | . . . . . 4 3 . . 3 . 1 1 . . . 7 Burn 9 | . . . . . 4 2 . . . . . 1 . . . 2 Meltdown 1 | . . . . . . . . . 1 . . . . . . . Destroy 5 | . . . . . . . . . . . . . . . . 5 Blast 3 | . . . . . . . . . 2 . 1 . . . . . Corrupt 1 | . . . . . . 1 . . . . . . . . . . Melee Attacks 1 | . . . . . . . . . . . . . . . . 1 Impact . | . . . . . . . . . . . . . . . . . Slashing . | . . . . . . . . . . . . . . . . . Piercing 1 | . . . . . . . . . . . . . . . . 1 Sneak Attacks . | . . . . . . . . . . . . . . . . . Combat Hostiles . | . . . . . . . . . . . . . . . . . Follow-up Attacks . | . . . . . . . . . . . . . . . . . Damage Inflicted 6421 | 149 87 . . 172 559 1509 198 . 938 382 970 24 . . 96 1337 Guns 3243 | 149 87 . . 40 474 545 50 . 127 284 515 24 . . 90 858 Cannons 1812 | . . . . 23 . 355 35 . 811 . 124 . . . . 464 Explosions 1244 | . . . . 109 85 606 113 . . . 331 . . . . . Melee 15 | . . . . . . . . . . . . . . . . 15 Ramming 60 | . . . . . . 3 . . . 51 . . . . 6 . Kinetic 1039 | . . . . 15 76 . . . 619 44 167 . . . . 118 Thermal 3501 | . . . . 157 374 1124 148 . 319 211 331 24 . . 90 723 Explosive . | . . . . . . . . . . . . . . . . . Electromagnetic 1806 | 149 87 . . . 109 382 50 . . 76 472 . . . . 481 Impact . | . . . . . . . . . . . . . . . . . Slashing . | . . . . . . . . . . . . . . . . . Piercing 15 | . . . . . . . . . . . . . . . . 15 Highest Corruption 27 | . . . . . . 1 5 1 1 4 24 24 24 24 2 27 Average Corruption 10 | . . . . . . 1 5 1 1 4 23 24 24 24 1 12 Corruption Purged . | . . . . . . . . . . . . . . . . . Corruption Blocked . | . . . . . . . . . . . . . . . . . Effects 65 | . . . . . . 5 4 . . . 12 28 1 9 . 6 Message Errors 16 | . . . . . . 2 . . . . 2 8 . 4 . . Matter Fused 10 | . . . . . . . 1 . . . 3 3 . 1 . 2 Heat Flow Errors 9 | . . . . . . 1 . . . . 1 4 1 2 . . Energy Discharges 9 | . . . . . . . 1 . . . 1 5 . . . 2 Data Loss (minor) 10 | . . . . . . 2 2 . . . 1 3 . 1 . 1 Data Loss (major) 1 | . . . . . . . . . . . . . . 1 . . Misfires 4 | . . . . . . . . . . . 2 2 . . . . Alerts 1 | . . . . . . . . . . . . 1 . . . . Misdirections 2 | . . . . . . . . . . . . 2 . . . . Weapon Failures 3 | . . . . . . . . . . . 2 . . . . 1 Overload Shots . | . . . . . . . . . . . . . . . . . Overflow Damage 125 | . . . . 12 . 5 . . . . 87 . . . . 21 Projectiles 26 | . . . . . . 5 . . . . . . . . . 21 Explosions 99 | . . . . 12 . . . . . . 87 . . . . . Melee . | . . . . . . . . . . . . . . . . . Knockbacks 3 | . . . . . . . . . . . 3 . . . . . Impact . | . . . . . . . . . . . . . . . . . Kinetic 3 | . . . . . . . . . . . 3 . . . . . Secondary . | . . . . . . . . . . . . . . . . . Self-Inflicted Damage 426 | . . . . 39 . 192 104 . . 23 65 . . . 3 . Shots 23 | . . . . 2 . 14 6 . . . 1 . . . . . Rammed 10 | . . . . . . 2 . . . 7 . . . . 1 . Targets Rammed 10 | . . . . . . 2 . . . 7 . . . . 1 . Kicked . | . . . . . . . . . . . . . . . . . Crushed . | . . . . . . . . . . . . . . . . . Highest Temperature 674 | 54 90 . . 440 384 639 555 . 55 441 183 182 239 255 674 521 Average Temperature 177 | 23 39 . . 175 107 213 250 . 28 159 79 62 202 154 315 91 Received Heat Transfer 570 | . . . . . . 90 12 . 234 . 135 . . . 9 90 Effects 96 | . . . . 1 2 39 7 . . 2 . . . . 36 9 Shutdowns 37 | . . . . 1 1 17 1 . . 2 . . . . 11 4 Energy Bleed 5 | . . . . . . 1 . . . . . . . . 4 . Interference 17 | . . . . . . 6 . . . . . . . . 8 3 Matter Decay 7 | . . . . . . 5 . . . . . . . . 2 . Short Circuit 9 | . . . . . 1 2 . . . . . . . . 5 1 Damage (minor) 6 | . . . . . . 2 1 . . . . . . . 3 . Damage (major) 10 | . . . . . . 4 4 . . . . . . . 2 . Damage (core) 5 | . . . . . . 2 1 . . . . . . . 1 1 Siege Activations . | . . . . . . . . . . . . . . . . . Robots Corrupted 3 | . . . . . . . . . . . 2 . . . . 1 Combat Hostiles 3 | . . . . . . . . . . . 2 . . . . 1 Parts Fried 18 | . . . . . . 4 1 . . . 6 . . . . 7 Impact Corruptions . | . . . . . . . . . . . . . . . . . Robots Melted 4 | . . . . . . 3 . . 1 . . . . . . . Combat Hostiles 3 | . . . . . . 2 . . 1 . . . . . . . Parts Melted 32 | . . . . . 2 20 4 . 2 . . . . . . 4 Heat Transferred 9950 | . . . . 714 1123 4905 640 . 500 333 200 111 . . 129 1295 Parts Sabotaged . | . . . . . . . . . . . . . . . . . Parts Stolen . | . . . . . . . . . . . . . . . . . Parts Stripped . | . . . . . . . . . . . . . . . . . Power Chain Reactions 2 | . . . . . 1 . . . . . 1 . . . . . Alert | -11 -10 -10 -10 -9 -8 -8 -7 -6 -6 -5 -4 -4 -4 -4 -3 -2 ------- Run | Yrd Mat Min Exi Min Mat Sto Fac Fac DSF Fac Fac Was Fac DSF Res Res Peak Influence 694 | 20 110 42 . 9 201 694 382 177 308 334 291 46 . 167 95 115 Initial 284 | . 13 42 . . 3 84 284 177 123 161 138 31 . 3 60 53 Average 158 | 7 54 42 . 4 51 365 310 177 194 208 226 27 . 115 46 52 Maximum Alert Level 2 | . . . . . 1 2 1 . 1 1 1 . . . . . Low Security (%) 73 | 100 100 100 . 100 86 43 . 100 57 70 32 100 100 100 100 100 Level 1 16 | . . . . . 13 7 100 . 42 29 67 . . . . . Level 2 10 | . . . . . . 48 . . . . . . . . . . Level 3 . | . . . . . . . . . . . . . . . . . Level 4 . | . . . . . . . . . . . . . . . . . Level 5 . | . . . . . . . . . . . . . . . . . High Security . | . . . . . . . . . . . . . . . . . Max Security . | . . . . . . . . . . . . . . . . . Sterilizations 1 | . . . . . . . . . 1 . . . . . . . Squads Dispatched 23 | . . . . . . 5 3 1 2 4 1 . . 2 3 2 Investigation 6 | . . . . . . 3 . 1 . 2 . . . . . . Extermination 2 | . . . . . . . . . . . . . . . . 2 Reinforcement 12 | . . . . . . 2 3 . 2 2 1 . . 2 . . Assault . | . . . . . . . . . . . . . . . . . Garrison 3 | . . . . . . . . . . . . . . . 3 . Intercept . | . . . . . . . . . . . . . . . . . Searches Triggered . | . . . . . . . . . . . . . . . . . Construction Impeded . | . . . . . . . . . . . . . . . . . Haulers Reinforced . | . . . . . . . . . . . . . . . . . Active Scanning Responses 1 | . . . . . . . . . . 1 . . . . . . Cargo Convoy Interrupts . | . . . . . . . . . . . . . . . . . Stealth | -11 -10 -10 -10 -9 -8 -8 -7 -6 -6 -5 -4 -4 -4 -4 -3 -2 --------- Run | Yrd Mat Min Exi Min Mat Sto Fac Fac DSF Fac Fac Was Fac DSF Res Res Distress Signals 8 | . 2 . . . 1 1 . . . . . . . . 1 3 Communications Jammed . | . . . . . . . . . . . . . . . . . Distress Signals . | . . . . . . . . . . . . . . . . . Times Spotted 119 | . 4 . . 3 16 26 8 . 13 7 8 5 . 2 12 15 Peak Tracking Total 7 | . 5 . . 3 7 4 7 . 4 4 4 6 . 3 6 7 Tactical Retreats 16 | . . . . 1 . 1 . . 1 1 1 1 . . 6 4 Traps | -11 -10 -10 -10 -9 -8 -8 -7 -6 -6 -5 -4 -4 -4 -4 -3 -2 ------- Run | Yrd Mat Min Exi Min Mat Sto Fac Fac DSF Fac Fac Was Fac DSF Res Res Traps Triggered 9 | . . . . . . 2 . . . 1 1 . . 4 . 1 Indirectly . | . . . . . . . . . . . . . . . . . Trap Hack Attempts . | . . . . . . . . . . . . . . . . . Triggered . | . . . . . . . . . . . . . . . . . Disarmed . | . . . . . . . . . . . . . . . . . Reprogrammed 6 | . . . . . . 6 . . . . . . . . . . Reused . | . . . . . . . . . . . . . . . . . Traps Extracted . | . . . . . . . . . . . . . . . . . Installed . | . . . . . . . . . . . . . . . . . Triggered . | . . . . . . . . . . . . . . . . . Machines | -11 -10 -10 -10 -9 -8 -8 -7 -6 -6 -5 -4 -4 -4 -4 -3 -2 ---------- Run | Yrd Mat Min Exi Min Mat Sto Fac Fac DSF Fac Fac Was Fac DSF Res Res Machines Disabled 9 | . . . . . 2 6 . . . . . . . . 1 . Max in Single Turn 2 | . . . . . 2 2 . . . . . . . . 1 . Garrison Access 1 | . . . . . . 1 . . . . . . . . . . Machines Repaired . | . . . . . . . . . . . . . . . . . Machines Dismantled . | . . . . . . . . . . . . . . . . . Machines Sabotaged . | . . . . . . . . . . . . . . . . . Overloaded Fab Kills . | . . . . . . . . . . . . . . . . . Hacking | -11 -10 -10 -10 -9 -8 -8 -7 -6 -6 -5 -4 -4 -4 -4 -3 -2 --------- Run | Yrd Mat Min Exi Min Mat Sto Fac Fac DSF Fac Fac Was Fac DSF Res Res Machines Accessed 29 | . 1 . 1 . 4 9 3 2 . 3 2 . 1 . 3 . Terminals 20 | . 1 . . . 4 6 1 1 . 3 1 . 1 . 2 . Fabricators 2 | . . . . . . . . 1 . . 1 . . . . . Repair Stations 3 | . . . . . . 2 1 . . . . . . . . . Recycling Units . | . . . . . . . . . . . . . . . . . Scanalyzers 1 | . . . . . . . 1 . . . . . . . . . Garrison Access 2 | . . . . . . 1 . . . . . . . . 1 . Total Hacks 87 | . 3 . 1 . 16 38 12 4 . 4 5 . 1 . 3 . Successful 50 | . 2 . 1 . 7 24 11 1 . 1 2 . 1 . . . Failed 37 | . 1 . . . 9 14 1 3 . 3 3 . . . 3 . Catastrophic 6 | . . . . . 1 . . . . 2 1 . . . 2 . Database Lockouts . | . . . . . . . . . . . . . . . . . Manual 21 | . 3 . 1 . 8 7 . . . . 1 . . . 1 . Terminals 48 | . 3 . . . 16 18 1 1 . 4 2 . 1 . 2 . Fabricators 6 | . . . . . . . . 3 . . 3 . . . . . Repair Stations 22 | . . . . . . 17 5 . . . . . . . . . Recycling Units . | . . . . . . . . . . . . . . . . . Scanalyzers 6 | . . . . . . . 6 . . . . . . . . . Garrison Access 4 | . . . . . . 3 . . . . . . . . 1 . Terminal Hacks 25 | . 2 . 1 . 7 10 1 1 . 1 1 . 1 . . . Robot Analysis 1 | . . . . . 1 . . . . . . . . . . . Open Door 2 | . . . . . . 2 . . . . . . . . . . Open DSF 3 | . . . . . . . 1 1 . . . . 1 . . . Branch Access Points 1 | . 1 . . . . . . . . . . . . . . . Emergency Access Points 2 | . 1 . . . 1 . . . . . . . . . . . Terminal Index 2 | . . . . . 1 1 . . . . . . . . . . Alert Level 4 | . . . . . 1 2 . . . . 1 . . . . . Unreport Threat 2 | . . . . . 1 1 . . . . . . . . . . Locate Traps 3 | . . . . . . 2 . . . 1 . . . . . . Reprogram Traps 1 | . . . . . . 1 . . . . . . . . . . Dispatch Records 1 | . . . . . 1 . . . . . . . . . . . Hauler Manifests 1 | . . . . . . 1 . . . . . . . . . . Zone Layout 1 | . . . . . 1 . . . . . . . . . . . Derelict Proto ID Bank 1 | . . . 1 . . . . . . . . . . . . . Fabricator Hacks 1 | . . . . . . . . . . . 1 . . . . . Load Schematic 1 | . . . . . . . . . . . 1 . . . . . Repair Station Hacks 17 | . . . . . . 13 4 . . . . . . . . . Scan Component 9 | . . . . . . 7 2 . . . . . . . . . Repair 8 | . . . . . . 6 2 . . . . . . . . . Recycling Unit Hacks . | . . . . . . . . . . . . . . . . . Scanalyzer 6 | . . . . . . . 6 . . . . . . . . . Insert Component 3 | . . . . . . . 3 . . . . . . . . . Analyze 3 | . . . . . . . 3 . . . . . . . . . Garrison Access Hacks 1 | . . . . . . 1 . . . . . . . . . . Seal Access 1 | . . . . . . 1 . . . . . . . . . . Unauthorized Hacks . | . . . . . . . . . . . . . . . . . Terminals . | . . . . . . . . . . . . . . . . . Fabricators . | . . . . . . . . . . . . . . . . . Repair Stations . | . . . . . . . . . . . . . . . . . Recycling Units . | . . . . . . . . . . . . . . . . . Scanalyzers . | . . . . . . . . . . . . . . . . . Garrison Access . | . . . . . . . . . . . . . . . . . Data Cores Recovered 1 | . . . . . . 1 . . . . . . . . . . Used . | . . . . . . . . . . . . . . . . . Hacking Detections 23 | . 1 . . . 4 7 2 1 . 3 2 . . . 3 . Full Trace Events 4 | . . . . . . 3 . 1 . . . . . . . . Feedback Events 2 | . . . . . . 1 . 1 . . . . . . . . Corruption 2 | . . . . . . 1 . 1 . . . . . . . . Feedback Blocked . | . . . . . . . . . . . . . . . . . Robot Schematics Acquired . | . . . . . . . . . . . . . . . . . Robots Built . | . . . . . . . . . . . . . . . . . Authchips . | . . . . . . . . . . . . . . . . . Time . | . . . . . . . . . . . . . . . . . Total Robot Build Rating . | . . . . . . . . . . . . . . . . . Part Schematics Acquired 3 | . . . . . . . 3 . . . . . . . . . Parts Built . | . . . . . . . . . . . . . . . . . Authchips . | . . . . . . . . . . . . . . . . . Time . | . . . . . . . . . . . . . . . . . Total Part Build Rating . | . . . . . . . . . . . . . . . . . Parts Repaired 8 | . . . . . . 6 2 . . . . . . . . . Time 387 | . . . . . . 311 76 . . . . . . . . . Parts Recycled . | . . . . . . . . . . . . . . . . . Recycled Matter . | . . . . . . . . . . . . . . . . . Retrieved Matter . | . . . . . . . . . . . . . . . . . Retrieved Components . | . . . . . . . . . . . . . . . . . Parts Scanalyzed 3 | . . . . . . . 3 . . . . . . . . . Part Schematics Acquired 3 | . . . . . . . 3 . . . . . . . . . Parts Damaged . | . . . . . . . . . . . . . . . . . Bothacking | -11 -10 -10 -10 -9 -8 -8 -7 -6 -6 -5 -4 -4 -4 -4 -3 -2 ------------ Run | Yrd Mat Min Exi Min Mat Sto Fac Fac DSF Fac Fac Was Fac DSF Res Res Used RIF Installer . | . . . . . . . . . . . . . . . . . Robots Hacked . | . . . . . . . . . . . . . . . . . Non-combat . | . . . . . . . . . . . . . . . . . Combat . | . . . . . . . . . . . . . . . . . Robot Hacks Applied . | . . . . . . . . . . . . . . . . . Relay Couplers Released . | . . . . . . . . . . . . . . . . . Fabnet Peak Effective % . | . . . . . . . . . . . . . . . . . Robots Rewired . | . . . . . . . . . . . . . . . . . Allies Hacked 2 | . . . . . . . . . . . . . . . 2 . Hacks Repelled . | . . . . . . . . . . . . . . . . . Allies | -11 -10 -10 -10 -9 -8 -8 -7 -6 -6 -5 -4 -4 -4 -4 -3 -2 -------- Run | Yrd Mat Min Exi Min Mat Sto Fac Fac DSF Fac Fac Was Fac DSF Res Res Total Allies 19 | . . . . . . 1 . . . . . 18 . . . . Largest Group 18 | . . . . . . 1 1 . . . . 18 13 13 4 . Highest-Rated Group 638 | . . . . . . 100 100 . . . . 638 491 491 144 . Highest-Rated Ally 100 | . . . . . . 100 100 . . . . 50 50 50 46 . Total Orders . | . . . . . . . . . . . . . . . . . Ally Attacks 163 | . . . . . . 22 . . . . . 52 . 73 16 . Total Damage 6787 | . . . . . . 678 . . . . . 3825 . 2034 250 . Kills 26 | . . . . . . 9 . . . . . 11 . 5 1 . Allies Corrupted . | . . . . . . . . . . . . . . . . . Allies Melted . | . . . . . . . . . . . . . . . . . Intel | -11 -10 -10 -10 -9 -8 -8 -7 -6 -6 -5 -4 -4 -4 -4 -3 -2 ------- Run | Yrd Mat Min Exi Min Mat Sto Fac Fac DSF Fac Fac Was Fac DSF Res Res Robot Analysis Total 1 | . . . . . 1 . . . . . . . . . . . Derelict Logs Recovered . | . . . . . . . . . . . . . . . . . Drone Launches . | . . . . . . . . . . . . . . . . . Drone Recoveries . | . . . . . . . . . . . . . . . . . Exploration | -11 -10 -10 -10 -9 -8 -8 -7 -6 -6 -5 -4 -4 -4 -4 -3 -2 ------------- Run | Yrd Mat Min Exi Min Mat Sto Fac Fac DSF Fac Fac Was Fac DSF Res Res Turns Passed 5792 | 94 122 42 509 113 675 1117 196 69 310 275 427 520 16 201 293 813 Spaces Moved 3998 | 47 77 36 309 80 412 790 204 89 143 363 166 303 9 145 311 514 Core 24 | 14 . . . . . . . . . . . . . . . 10 Treads 12 | . . . . . . . . . . . . . . . . 12 Legs 1668 | 33 77 36 309 80 412 197 . . 78 . 115 303 9 19 . . Wheels . | . . . . . . . . . . . . . . . . . Hover 2294 | . . . . . . 593 204 89 65 363 51 . . 126 311 492 Flight . | . . . . . . . . . . . . . . . . . Fastest Speed 26 | 50 120 120 120 120 120 38 38 36 36 40 120 120 190 26 65 36 Average Speed 95 | 114 120 120 161 120 122 69 41 36 96 52 204 164 190 85 70 64 Slowest Speed 420 | 150 120 120 190 120 190 380 98 36 260 105 420 190 190 212 144 400 Overloaded Moves . | . . . . . . . . . . . . . . . . . Propulsion Burnouts . | . . . . . . . . . . . . . . . . . Robots Hopped . | . . . . . . . . . . . . . . . . . Cave-ins Triggered . | . . . . . . . . . . . . . . . . . Exploration Rate (%) 35 | 4 11 19 70 26 28 89 7 3 90 10 5 94 . 94 11 12 Regions Visited 16 Branch Regions 4 Pre-discovered Areas . | . . . . . . . . . . . . . . . . . Known Exits Taken 8 | . 1 1 1 1 1 1 . 1 . . . . 1 . . . Unknown Exits Taken 4 | 1 . . . . . . 1 . . 1 . . . . 1 . Scrap Searched 2 | . . 1 . 1 . . . . . . . . . . . . Spaces Dug . | . . . . . . . . . . . . . . . . . Terrain Destroyed 87 | . . . . 14 5 50 1 . . 2 13 . . . . 2 Melee . | . . . . . . . . . . . . . . . . . Projectile 16 | . . . . 1 . 4 . . . 2 9 . . . . . AOE 69 | . . . . 13 5 46 1 . . . 4 . . . . . Terrain Rammed . | . . . . . . . . . . . . . . . . . Walls Destroyed . | . . . . . . . . . . . . . . . . . Machines Disabled . | . . . . . . . . . . . . . . . . . Actions | -11 -10 -10 -10 -9 -8 -8 -7 -6 -6 -5 -4 -4 -4 -4 -3 -2 --------- Run | Yrd Mat Min Exi Min Mat Sto Fac Fac DSF Fac Fac Was Fac DSF Res Res Total 5613 | 68 91 35 321 93 522 1301 313 124 269 419 220 322 8 218 375 914 Wait 941 | . 1 . . 1 47 384 77 28 52 1 16 . . 7 44 283 Move 3983 | 46 76 35 308 79 411 789 203 88 142 362 166 302 8 144 310 514 Hop . | . . . . . . . . . . . . . . . . . Pick Up 69 | 2 5 . 3 . 9 17 5 1 9 8 . 2 . 7 . 1 Fast Attach 121 | 8 . . 2 . 7 21 5 2 17 1 5 9 . 20 7 17 Attach 61 | 1 . . 1 5 3 7 10 2 4 4 8 1 . . 4 11 Detach 31 | 1 . . . 4 . 2 5 . 1 1 . 3 . 1 2 11 Swap 23 | 1 2 . 1 . 3 1 . 1 1 6 . . . 3 2 2 Drop 104 | 1 . . 6 . 10 28 5 2 16 6 1 5 . 17 2 5 Fire 234 | 8 7 . . 4 32 37 3 . 27 20 24 . . . 3 69 Melee 1 | . . . . . . . . . . . . . . . . 1 Ram 10 | . . . . . . 2 . . . 7 . . . . 1 . Kick . | . . . . . . . . . . . . . . . . . Crush . | . . . . . . . . . . . . . . . . . Escape Stasis 32 | . . . . . . 13 . . . . . . . 19 . . Rewire . | . . . . . . . . . . . . . . . . . Trap . | . . . . . . . . . . . . . . . . . Miscellaneous 3 | . . . . . . . . . . 3 . . . . . . Route ------- -11/Scrapyard -10/Materials (discovered 2 exits: *Min x2) -10/Mines -10/Exiles -9/Mines -8/Materials (discovered 2 exits: *Fac / *Sto) -8/Storage -7/Factory -6/Factory -6/DSF -5/Factory -4/Factory -4/Waste -4/Factory -4/DSF -3/Research -2/Research History --------- Turn | Location | Event 22 | -11/Scrapyard | Discovered new exit (range 15) 95 | -11/Scrapyard | Entered Materials 95 | -10/Materials | Discovered new exit (range 14) 138 | -10/Materials | Identified exit to Mines 193 | -10/Materials | Met 8R-AWN 217 | -10/Materials | Entered Mines 219 | -10/Mines | Followed 8R-AWN into the Mines 255 | -10/Mines | Discovered new exit (range 5) 258 | -10/Mines | Identified exit to Exiles 259 | -10/Mines | Entered Exiles 289 | -10/Exiles | Welcomed by 8R-AWN 301 | -10/Exiles | Build established: Mutant 309 | -10/Exiles | Met EX-HEX 345 | -10/Exiles | Met EX-BIN 359 | -10/Exiles | Aligned with FarCom system 360 | -10/Exiles | Given EX-Vault access code 401 | -10/Exiles | Opened EX-Vault 412 | -10/Exiles | Found Firepult 453 | -10/Exiles | Warned to stay clear of 0b10 Research branches 504 | -10/Exiles | Met EX-DEC 741 | -10/Exiles | Discovered new exit (range 14) 764 | -10/Exiles | Identified exit to Mines 768 | -10/Exiles | Left Exiles lab with Firepult 768 | -10/Exiles | Entered Mines 776 | -9/Mines | Assembled infested the area 781 | -9/Mines | Assisted by a Guerilla fighting off Assembled 865 | -9/Mines | Discovered new exit (range 14) 880 | -9/Mines | Identified exit to Materials 881 | -9/Mines | Entered Materials 881 | -8/Materials | Evolved 4 slots: Power x1, Propulsion x2, Utility x1 886 | -8/Materials | Discovered new exit (range 12) 1088 | -8/Materials | Identified exit to Storage 1207 | -8/Materials | Build established: Skirmisher 1229 | -8/Materials | Discovered new exit (range 5) 1232 | -8/Materials | Identified exit to Factory 1489 | -8/Materials | Destroyed 7 combat bots 1556 | -8/Materials | Entered Storage 1725 | -8/Storage | Repaired Imp. EM Shotgun 1763 | -8/Storage | Repaired Aluminum Leg 1810 | -8/Storage | Build established: Hacker-Mutant 2033 | -8/Storage | Met 01-MTF 2286 | -8/Storage | Build established: Mutant 2410 | -8/Storage | Discovered exit to Factory (range 11) 2501 | -8/Storage | Repaired Broken Aerolev Unit 2541 | -8/Storage | Repaired Adv. Targeting Computer 2602 | -8/Storage | Repaired Aerolev Unit 2664 | -8/Storage | Repaired Aerolev Unit 2673 | -8/Storage | Entered Factory 2673 | -7/Factory | Accompanied by 1 ally (01-MTF) 2673 | -7/Factory | Evolved 2 slots: Utility x2 2678 | -7/Factory | 01-MTF left 2784 | -7/Factory | Repaired Lgt. Deuterium Engine 2824 | -7/Factory | Repaired Shock Bomb Launcher 2828 | -7/Factory | Identified exit to DSF 2855 | -7/Factory | Discovered new exit (range 12) 2869 | -7/Factory | Entered another Factory area 2869 | -6/Factory | Evolved 2 slots: Propulsion x1, Utility x1 2927 | -6/Factory | Identified exit to DSF 2938 | -6/Factory | Entered DSF 2953 | -6/DSF | Additional patrols routed to DSF 3065 | -6/DSF | Lost 7 parts (1p3n1u2w) 3093 | -6/DSF | Found Prototype Device 3093 | -6/DSF | Identified Active Sensor Suite 3157 | -6/DSF | Discovered new exit (range 14) 3207 | -6/DSF | Sterilization system engaged 3227 | -6/DSF | Ambient heat levels rising (+10) 3242 | -6/DSF | Ambient heat levels rising (+10) 3247 | -6/DSF | Identified exit to Factory 3248 | -6/DSF | Entered Factory 3248 | -5/Factory | Evolved 2 slots: Propulsion x1, Weapon x1 3487 | -5/Factory | Discovered new exit (range 14) 3523 | -5/Factory | Entered another Factory area 3523 | -4/Factory | Evolved 2 slots: Power x1, Utility x1 3550 | -4/Factory | Lost 7 parts (2p3n1u1w) 3720 | -4/Factory | System corruption reached 10% 3950 | -4/Factory | Sucked down chute 3950 | -4/Factory | Entered Waste 3964 | -4/Waste | Spotted C-40 Crusher 3967 | -4/Waste | Spotted C-40 Crusher 3973 | -4/Waste | Spotted C-40 Crusher 4000 | -4/Waste | Spotted C-40 Crusher 4002 | -4/Waste | Spotted C-40 Crusher 4015 | -4/Waste | Crushed by Compactor (1 part destroyed, 2 dropped) 4024 | -4/Waste | Crushed by Compactor (1 part destroyed, 1 dropped) 4029 | -4/Waste | Crushed by Compactor (1 part destroyed, 2 dropped) 4030 | -4/Waste | Crushed by Compactor (1 part destroyed, 2 dropped) 4032 | -4/Waste | Crushed by Compactor (1 part destroyed, 1 dropped) 4063 | -4/Waste | Lost 6 parts (1p1n3u1w) 4073 | -4/Waste | Warlord forces began an assault 4078 | -4/Waste | Allies destroyed C-40 Crusher 4087 | -4/Waste | Allies destroyed C-40 Crusher 4121 | -4/Waste | Lost 5 allies 4140 | -4/Waste | Found Damper Plating 4440 | -4/Waste | Build established: Tank 4447 | -4/Waste | Discovered new exit (range 12) 4470 | -4/Waste | Entered Factory 4470 | -4/Factory | Accompanied by 13 allies 4486 | -4/Factory | Identified exit to DSF 4486 | -4/Factory | Entered DSF 4486 | -4/DSF | Accompanied by 13 allies 4515 | -4/DSF | Additional patrols routed to DSF 4585 | -4/DSF | Lost 6 allies 4637 | -4/DSF | Discovered new exit (range 14) 4687 | -4/DSF | Entered Research 4687 | -3/Research | Accompanied by 4 allies 4687 | -3/Research | Evolved 2 slots: Utility x2 4697 | -3/Research | Lost 3 allies 4747 | -3/Research | Garrison activated, responded to threat 4831 | -3/Research | Lost 3 allies 4926 | -3/Research | Lost 11 parts (3p5u3w) 4971 | -3/Research | Discovered new exit (range 13) 4980 | -3/Research | Entered another Research area 4980 | -2/Research | Evolved 2 slots: Utility x1, Weapon x1 5122 | -2/Research | Build established: Mutant 5615 | -2/Research | Lost 3 parts (2n1w) 5647 | -2/Research | Found Adv. Powered Armor 5676 | -2/Research | System corruption reached 10% 5684 | -2/Research | Lost 4 parts (2p1n1u) 5760 | -2/Research | Core integrity fell below 50% 5779 | -2/Research | Found Enh. Force Lance 5788 | -2/Research | Core integrity fell below 20% 5793 | -2/Research | Destroyed by P-80 Master with Gamma Rifle Last Messages --------------- Cmb. Antigrav System destroyed. Energy Well destroyed. Cmb. Gravmag System destroyed. Knocked back. Adv. Signal Interpreter destroyed. Imp. Transmission Jammer destroyed. Cloaking Device destroyed. Imp. Quantum Reactor destroyed. Knocked back. Acquired Adv. Heavy Siege Treads. System corrupted: Energy discharge (-31). Acquired Enh. Force Lance. System corrupted: Matter fused (-8). Adv. Thermal Shield destroyed. Adv. Heavy Siege Treads destroyed. Knocked back. Core Analyzer destroyed. Critical hit (Blast). Knocked back. [Achievement: Just Browsing] Map ----- +----------------------------------------------------+ | | | | | | | | | | | | | | | | | | | | | | | | | | | | | | | | | | | | | ??????????????????###############????????????????? | | ??????????????????# % #????????????????? | | ??????????????????# #????????????????? | | ??????????????????# % % #????????????????? | | ??????????????????# p #????????????????? | | ??????????????????# p #????????????????? | | ??????????????????# %p #????????????????? | | ???????????????##########@;;#####???????????????# | | ???????????????# = ! # H #???????????????????# | | ???????????????# =#!! #########+####??????# | | ???????????????# !!+%* ! +??????# | | ???????????????# ;= ######## #??????# | | ???????????????# #% * #??????# #??????# | | ???????????????# ###;###??????# #??????# | | ???????????????########?## #???????# #??????# | | ??????????????????????????##???????# #??????# | | ???????????????????????????????????# #???????? | | ???????????????????????????????????# #???????? | | ???????????????????????????????????# #####+#?? | | ???????????????????????????????????## #?? | | ????????????????????????????????????# #?? | | ????????????????????????????????????# ### | | ????????????????????????????????????+ | | ???????###########??????????????????# ###/### | | ???????# #??????????????????# #??? !? | | ######## #??????????????????# +???? | | # #??????????????????########????? | | # #???????????????????????????????? | | # #???????????????????????????????? | | # #???????????????????????????????? | | ### # #???????????????????????????????? | | ??# # #???????????????????????????????? | +----------------------------------------------------+ Best States ------------- Heat Dissipation 49 Coolant Potential 80 Energy Generation 65 Energy Capacity 815 Matter Stores 550 Matter Capacity 550 Sight Range 20 Robot Scan Range 20 Terrain Scan Range 16 Terrain Scan Density 10 Jamming Range 14 Cloak Strength 2 Power Amplification 60 Additional Mass Support 6 Armor Coverage 1900 Resistance: TH 25 Resistance: EM 90 Phase Shifting 5 Evasion (%) 65 Targeting Accuracy 16 Launcher Accuracy 30 Core Analysis 6 Recoil Reduction 2 Particle Charging 15 Offensive Hacking 10 Defensive Hacking 10 Authchip Count 4 Item Schematics ----------------- Cld. Aerolev Unit | -7/Factory | Scanalyzed Lgt. Deuterium Engine | -7/Factory | Scanalyzed Hvy. EM Shotgun | -7/Factory | Scanalyzed Robot Schematics ------------------ None Fabricated ------------ Nothing Alien Tech Used ----------------- None Achievements -------------- Dangerous Findings Just Browsing Challenges ------------ None Game ------ Seed DefenseReinforcedLoader Manual? 0 Play Time 01:46:35 Cumulative 17.8 hours Start 2024.04.06 @ 10:27:07 End 2024.04.06 @ 12:22:07 Sessions 1 Manual Loads 0 Difficulty Rogue Special Mode None Game No. 31 Rogue 31 Adventurer 0 Explorer 0 Win Type - Total 0 Types 0/0/0/0/0/0/0/0/0 Lore% 19 Gallery% 25 Achievement% 20 Wizard Run 0 Options --------- Layout 1 ASCII 0 Keyboard 0 Movement Mouse Keybinds 0 Fullscreen 1 Font 32/SmallcapsGlow Map View 50x35 Zoom Use 0% Tactical HUD 0 Map Filters NONE Filters NONE Steam 1 RUN: 1dd0a275-c0ec-492d-b98b-758207d6a714